[Event "Late-Titled-Tuesday-Blitz-March-19-2024"]
[Site "Chess.com"]
[Date "2024.03.19"]
[Round "3"]
[White "Statham_01"]
[Black "sergiochess83"]
[Result "0-1"]
[WhiteElo "2568"]
[BlackElo "2958"]
[TimeControl "180+1"]
[EndTime "14:28:08 PDT"]
[Termination "sergiochess83 won by checkmate"]

1. e4 {[%clk 0:02:57]} 1... e6 {[%clk 0:02:59.9]} 2. d4 {[%clk 0:02:54.1]} 2...
d5 {[%clk 0:02:58.6]} 3. Bd3 {[%clk 0:02:53.7]} 3... dxe4 {[%clk 0:02:56.7]} 4.
Bxe4 {[%clk 0:02:54.2]} 4... Nf6 {[%clk 0:02:57.4]} 5. Bf3 {[%clk 0:02:54.9]}
5... Bd6 {[%clk 0:02:43.6]} 6. Ne2 {[%clk 0:02:53.3]} 6... O-O {[%clk
0:02:42.8]} 7. Be3 {[%clk 0:02:52.2]} 7... Nbd7 {[%clk 0:02:39.9]} 8. c4 {[%clk
0:02:52.3]} 8... e5 {[%clk 0:02:39.6]} 9. Nbc3 {[%clk 0:02:46.5]} 9... Re8
{[%clk 0:02:34.7]} 10. Qc2 {[%clk 0:02:35.9]} 10... exd4 {[%clk 0:02:26.8]} 11.
Nxd4 {[%clk 0:02:31.7]} 11... Ne5 {[%clk 0:02:25.9]} 12. Qe2 {[%clk 0:01:37.4]}
12... Qe7 {[%clk 0:01:19.8]} 13. O-O-O {[%clk 0:01:23.6]} 13... Nxf3 {[%clk
0:01:00.3]} 14. gxf3 {[%clk 0:01:16.9]} 14... c5 {[%clk 0:00:53.9]} 15. Nc2
{[%clk 0:01:05.2]} 15... Bf5 {[%clk 0:00:51.4]} 16. h4 {[%clk 0:00:53.6]} 16...
Bg6 {[%clk 0:00:48.3]} 17. Nd5 {[%clk 0:00:41.5]} 17... Nxd5 {[%clk 0:00:46.9]}
18. Rxd5 {[%clk 0:00:42.4]} 18... Bf4 {[%clk 0:00:39]} 19. h5 {[%clk 0:00:17.5]}
19... Bxc2 {[%clk 0:00:36.8]} 20. Kxc2 {[%clk 0:00:17]} 20... Bxe3 {[%clk
0:00:36.1]} 21. fxe3 {[%clk 0:00:17.9]} 21... Qxe3 {[%clk 0:00:36.3]} 22. Qxe3
{[%clk 0:00:16.8]} 22... Rxe3 {[%clk 0:00:37.2]} 23. Rhd1 {[%clk 0:00:10.4]}
23... h6 {[%clk 0:00:30.8]} 24. Rf5 {[%clk 0:00:04]} 24... Rae8 {[%clk
0:00:10.5]} 25. Rd7 {[%clk 0:00:04]} 25... Re2+ {[%clk 0:00:11]} 26. Kb3 {[%clk
0:00:03.9]} 26... R8e3+ {[%clk 0:00:10]} 27. Ka4 {[%clk 0:00:04.3]} 27... Rxb2
{[%clk 0:00:10.1]} 28. Rfxf7 {[%clk 0:00:02.1]} 28... Rb4+ {[%clk 0:00:10.2]}
29. Ka5 {[%clk 0:00:01.4]} 29... Ra3# {[%clk 0:00:11.1]} 0-1

[Event "Late-Titled-Tuesday-Blitz-March-19-2024"]
[Site "Chess.com"]
[Date "2024.03.19"]
[Round "3"]
[White "Fonsofan"]
[Black "andrzej"]
[Result "1-0"]
[WhiteElo "2729"]
[BlackElo "2512"]
[TimeControl "180+1"]
[EndTime "14:28:08 PDT"]
[Termination "Fonsofan won by checkmate"]

1. b4 {[%clk 0:02:25.9]} 1... d5 {[%clk 0:02:56.7]} 2. Bb2 {[%clk 0:02:25.4]}
2... Qd6 {[%clk 0:02:57]} 3. a3 {[%clk 0:02:24.9]} 3... Qg6 {[%clk 0:02:54.7]}
4. d3 {[%clk 0:02:22.7]} 4... Nf6 {[%clk 0:02:49.5]} 5. Nd2 {[%clk 0:02:22.2]}
5... h5 {[%clk 0:02:44.9]} 6. Ngf3 {[%clk 0:02:21.9]} 6... Nbd7 {[%clk
0:02:42.9]} 7. c4 {[%clk 0:02:21]} 7... c6 {[%clk 0:02:42.1]} 8. g3 {[%clk
0:02:18.1]} 8... e6 {[%clk 0:02:40.6]} 9. Qb3 {[%clk 0:02:12.4]} 9... a5 {[%clk
0:02:33.6]} 10. b5 {[%clk 0:02:09.7]} 10... Nc5 {[%clk 0:02:33.2]} 11. Qc2
{[%clk 0:02:09.3]} 11... a4 {[%clk 0:02:25.5]} 12. bxc6 {[%clk 0:02:07]} 12...
bxc6 {[%clk 0:02:25.3]} 13. Ne5 {[%clk 0:02:07.5]} 13... Qf5 {[%clk 0:02:18.6]}
14. Bg2 {[%clk 0:01:39.9]} 14... h4 {[%clk 0:02:03.2]} 15. cxd5 {[%clk
0:01:34.2]} 15... hxg3 {[%clk 0:01:58.1]} 16. hxg3 {[%clk 0:01:30.8]} 16...
Rxh1+ {[%clk 0:01:57.3]} 17. Bxh1 {[%clk 0:01:31.7]} 17... cxd5 {[%clk
0:01:52.5]} 18. e4 {[%clk 0:01:10.6]} 18... Qh3 {[%clk 0:01:39.5]} 19. O-O-O
{[%clk 0:01:05.9]} 19... Ba6 {[%clk 0:01:37.8]} 20. d4 {[%clk 0:01:00.7]} 20...
Rc8 {[%clk 0:01:12.2]} 21. dxc5 {[%clk 0:00:48.7]} 21... Rxc5 {[%clk 0:01:12.6]}
22. Bc3 {[%clk 0:00:48.7]} 22... d4 {[%clk 0:01:13.1]} 23. Qxa4+ {[%clk
0:00:48.5]} 23... Bb5 {[%clk 0:01:07]} 24. Qxd4 {[%clk 0:00:42.3]} 24... Nd7
{[%clk 0:00:52.5]} 25. Nxd7 {[%clk 0:00:38.9]} 25... Bxd7 {[%clk 0:00:53.4]} 26.
Nf3 {[%clk 0:00:26.5]} 26... Rc7 {[%clk 0:00:39]} 27. Ne5 {[%clk 0:00:20.6]}
27... Bxa3+ {[%clk 0:00:38.1]} 28. Kb1 {[%clk 0:00:18]} 28... Rb7+ {[%clk
0:00:30.9]} 29. Ka2 {[%clk 0:00:18.1]} 29... Qh5 {[%clk 0:00:24.8]} 30. Bf3
{[%clk 0:00:16.2]} 30... Qg5 {[%clk 0:00:12.9]} 31. Kxa3 {[%clk 0:00:16.6]}
31... Kf8 {[%clk 0:00:12]} 32. Nxd7+ {[%clk 0:00:16]} 32... Kg8 {[%clk
0:00:12.7]} 33. Ne5 {[%clk 0:00:15.5]} 33... Qe7+ {[%clk 0:00:11.6]} 34. Qd6
{[%clk 0:00:14.7]} 34... Ra7+ {[%clk 0:00:11.5]} 35. Kb2 {[%clk 0:00:14.6]}
35... Qb7+ {[%clk 0:00:12]} 36. Bb4 {[%clk 0:00:15.1]} 36... Ra6 {[%clk
0:00:11.6]} 37. Qf8+ {[%clk 0:00:15.1]} 37... Kh7 {[%clk 0:00:12.5]} 38. Rh1#
{[%clk 0:00:15.3]} 1-0

[Event "Late-Titled-Tuesday-Blitz-March-19-2024"]
[Site "Chess.com"]
[Date "2024.03.19"]
[Round "3"]
[White "bipe137"]
[Black "Rodalquilar"]
[Result "1-0"]
[WhiteElo "2538"]
[BlackElo "2761"]
[TimeControl "180+1"]
[EndTime "14:28:10 PDT"]
[Termination "bipe137 won on time"]

1. d4 {[%clk 0:02:57.3]} 1... d5 {[%clk 0:03:00.1]} 2. c4 {[%clk 0:02:38.7]}
2... e6 {[%clk 0:03:00]} 3. Nc3 {[%clk 0:02:38.9]} 3... a6 {[%clk 0:02:59.8]} 4.
cxd5 {[%clk 0:02:38.8]} 4... exd5 {[%clk 0:03:00.7]} 5. Nf3 {[%clk 0:02:39.4]}
5... Nf6 {[%clk 0:03:00.6]} 6. Bg5 {[%clk 0:02:39.8]} 6... Be6 {[%clk
0:02:59.9]} 7. Bxf6 {[%clk 0:02:39.7]} 7... Qxf6 {[%clk 0:02:59.9]} 8. Qb3
{[%clk 0:02:39.9]} 8... Ra7 {[%clk 0:02:59.8]} 9. Nxd5 {[%clk 0:02:39]} 9... Qd8
{[%clk 0:02:58.2]} 10. e4 {[%clk 0:02:39.5]} 10... c6 {[%clk 0:02:57.5]} 11. Qb6
{[%clk 0:02:39.4]} 11... cxd5 {[%clk 0:02:32.5]} 12. Qxa7 {[%clk 0:02:35.5]}
12... Bb4+ {[%clk 0:02:32.4]} 13. Nd2 {[%clk 0:02:35.6]} 13... Nc6 {[%clk
0:01:20.8]} 14. Qxb7 {[%clk 0:02:32.3]} 14... Bxd2+ {[%clk 0:01:20.5]} 15. Kxd2
{[%clk 0:02:30.7]} 15... Nxd4 {[%clk 0:01:20.3]} 16. e5 {[%clk 0:02:09]} 16...
O-O {[%clk 0:01:04.9]} 17. h4 {[%clk 0:02:00.8]} 17... Qa5+ {[%clk 0:00:59]} 18.
b4 {[%clk 0:01:53.5]} 18... Qa3 {[%clk 0:00:53.9]} 19. Bd3 {[%clk 0:01:51.7]}
19... Qb2+ {[%clk 0:00:40.7]} 20. Ke3 {[%clk 0:01:49.7]} 20... Nf5+ {[%clk
0:00:39]} 21. Bxf5 {[%clk 0:01:49.1]} 21... Qxe5+ {[%clk 0:00:39]} 22. Kd2
{[%clk 0:01:46]} 22... Bxf5 {[%clk 0:00:38.3]} 23. Qb6 {[%clk 0:01:39]} 23...
Qb2+ {[%clk 0:00:30.2]} 24. Ke3 {[%clk 0:01:38]} 24... Qc3+ {[%clk 0:00:20.1]}
25. Kf4 {[%clk 0:01:35.1]} 25... Bd7 {[%clk 0:00:04]} 26. f3 {[%clk 0:01:31.5]}
26... Re8 {[%clk 0:00:04.5]} 27. Kg3 {[%clk 0:01:26]} 27... Qe5+ {[%clk
0:00:03.9]} 28. Kf2 {[%clk 0:01:20.1]} 28... Qb2+ {[%clk 0:00:04.2]} 29. Kg3
{[%clk 0:01:19.5]} 29... Qe5+ {[%clk 0:00:04.1]} 30. f4 {[%clk 0:01:11]} 30...
Qc3+ {[%clk 0:00:04.5]} 31. Kh2 {[%clk 0:01:11.4]} 31... Re6 {[%clk 0:00:03.2]}
32. Qd8+ {[%clk 0:01:08.1]} 32... Be8 {[%clk 0:00:03.2]} 33. Rhf1 {[%clk
0:00:55.9]} 33... Qxb4 {[%clk 0:00:02.4]} 34. Rab1 {[%clk 0:00:47.8]} 34... Qd4
{[%clk 0:00:02.5]} 35. Rbd1 {[%clk 0:00:41.7]} 35... Qb4 {[%clk 0:00:02.6]} 36.
Rb1 {[%clk 0:00:35.6]} 36... Qd4 {[%clk 0:00:02.6]} 37. Rbe1 {[%clk 0:00:32.6]}
37... h6 {[%clk 0:00:01.5]} 38. Rxe6 {[%clk 0:00:31.8]} 1-0

[Event "Late-Titled-Tuesday-Blitz-March-19-2024"]
[Site "Chess.com"]
[Date "2024.03.19"]
[Round "3"]
[White "Chempiblinka"]
[Black "Josetricks"]
[Result "1-0"]
[WhiteElo "2348"]
[BlackElo "2530"]
[TimeControl "180+1"]
[EndTime "14:28:11 PDT"]
[Termination "Chempiblinka won on time"]

1. Nf3 {[%clk 0:03:00.9]} 1... g6 {[%clk 0:02:56.3]} 2. g3 {[%clk 0:03:01.2]}
2... Bg7 {[%clk 0:02:57.2]} 3. Bg2 {[%clk 0:03:01.8]} 3... d6 {[%clk 0:02:57.1]}
4. c4 {[%clk 0:03:02.7]} 4... Nd7 {[%clk 0:02:57.4]} 5. O-O {[%clk 0:03:02.9]}
5... Ngf6 {[%clk 0:02:58]} 6. Nc3 {[%clk 0:03:01]} 6... O-O {[%clk 0:02:58.9]}
7. d3 {[%clk 0:02:58.9]} 7... c5 {[%clk 0:02:55.8]} 8. a3 {[%clk 0:02:58.3]}
8... Rb8 {[%clk 0:02:55.9]} 9. Rb1 {[%clk 0:02:58.9]} 9... Ne8 {[%clk
0:02:50.5]} 10. Bd2 {[%clk 0:02:56.9]} 10... Nc7 {[%clk 0:02:49.1]} 11. b4
{[%clk 0:02:57.4]} 11... cxb4 {[%clk 0:02:49.5]} 12. axb4 {[%clk 0:02:58.3]}
12... b5 {[%clk 0:02:49.4]} 13. cxb5 {[%clk 0:02:50.3]} 13... Nxb5 {[%clk
0:02:48.6]} 14. Nxb5 {[%clk 0:02:51.2]} 14... Rxb5 {[%clk 0:02:48.3]} 15. Qa4
{[%clk 0:02:52]} 15... a6 {[%clk 0:02:39.9]} 16. Rfc1 {[%clk 0:02:43.6]} 16...
Nb6 {[%clk 0:02:33.4]} 17. Qc2 {[%clk 0:02:41]} 17... Bb7 {[%clk 0:02:11.1]} 18.
Qc7 {[%clk 0:02:30.5]} 18... Nd5 {[%clk 0:02:09]} 19. Qc4 {[%clk 0:02:19.5]}
19... Nb6 {[%clk 0:00:59.6]} 20. Qh4 {[%clk 0:02:17.8]} 20... Rh5 {[%clk
0:00:56.3]} 21. Qg4 {[%clk 0:02:11.8]} 21... f5 {[%clk 0:00:54.6]} 22. Qf4
{[%clk 0:02:11.7]} 22... e5 {[%clk 0:00:52.7]} 23. Qe3 {[%clk 0:02:06.7]} 23...
f4 {[%clk 0:00:51.8]} 24. gxf4 {[%clk 0:02:02]} 24... Rxf4 {[%clk 0:00:48.3]}
25. b5 {[%clk 0:01:49.8]} 25... Ra4 {[%clk 0:00:35.4]} 26. bxa6 {[%clk
0:01:36.9]} 26... Rxa6 {[%clk 0:00:36.3]} 27. Ba5 {[%clk 0:01:00.6]} 27... Bh6
{[%clk 0:00:32.1]} 28. Bxb6 {[%clk 0:00:56.4]} 28... Qe8 {[%clk 0:00:19.2]} 29.
Qxh6 {[%clk 0:00:48.2]} 29... Rxh6 {[%clk 0:00:20.1]} 30. Be3 {[%clk 0:00:46.1]}
30... Bxf3 {[%clk 0:00:18]} 31. Bxf3 {[%clk 0:00:43.3]} 31... g5 {[%clk
0:00:18.5]} 32. Bd5+ {[%clk 0:00:42.2]} 32... Kh8 {[%clk 0:00:17]} 33. Rc7
{[%clk 0:00:37.4]} 33... Ra5 {[%clk 0:00:13.5]} 34. Rbc1 {[%clk 0:00:32.3]}
34... Rxd5 {[%clk 0:00:11.7]} 35. Rc8 {[%clk 0:00:32.5]} 35... Qxc8 {[%clk
0:00:08.8]} 36. Rxc8+ {[%clk 0:00:33.4]} 36... Kg7 {[%clk 0:00:09.4]} 37. f3
{[%clk 0:00:31.8]} 37... Kf7 {[%clk 0:00:06.5]} 38. Kf2 {[%clk 0:00:31.9]} 38...
Rxh2+ {[%clk 0:00:04.4]} 39. Ke1 {[%clk 0:00:31]} 39... h6 {[%clk 0:00:03.7]}
40. Rc7+ {[%clk 0:00:30.2]} 40... Ke6 {[%clk 0:00:03]} 41. Rh7 {[%clk
0:00:30.1]} 1-0

[Event "Late-Titled-Tuesday-Blitz-March-19-2024"]
[Site "Chess.com"]
[Date "2024.03.19"]
[Round "3"]
[White "Likvidator228"]
[Black "Eloist"]
[Result "1-0"]
[WhiteElo "2572"]
[BlackElo "2482"]
[TimeControl "180+1"]
[EndTime "14:28:13 PDT"]
[Termination "Likvidator228 won on time"]

1. d4 {[%clk 0:02:56.4]} 1... e6 {[%clk 0:02:59.5]} 2. c4 {[%clk 0:02:55.9]}
2... Nf6 {[%clk 0:02:58]} 3. Nc3 {[%clk 0:02:56.4]} 3... Bb4 {[%clk 0:02:55.8]}
4. e3 {[%clk 0:02:56.1]} 4... O-O {[%clk 0:02:52.5]} 5. Ne2 {[%clk 0:02:55.9]}
5... c6 {[%clk 0:02:52.3]} 6. a3 {[%clk 0:02:55.8]} 6... Ba5 {[%clk 0:02:51.5]}
7. b4 {[%clk 0:02:55.9]} 7... Bc7 {[%clk 0:02:51.4]} 8. Bb2 {[%clk 0:02:56.3]}
8... d5 {[%clk 0:02:51.4]} 9. Ng3 {[%clk 0:02:53.9]} 9... e5 {[%clk 0:02:38.4]}
10. dxe5 {[%clk 0:02:52.1]} 10... Bxe5 {[%clk 0:02:37.9]} 11. cxd5 {[%clk
0:02:52.5]} 11... Nxd5 {[%clk 0:02:36.8]} 12. Rc1 {[%clk 0:02:45.1]} 12... Nxc3
{[%clk 0:02:23.4]} 13. Qxd8 {[%clk 0:02:42.4]} 13... Rxd8 {[%clk 0:02:21.8]} 14.
Bxc3 {[%clk 0:02:42.3]} 14... Bxc3+ {[%clk 0:02:21.6]} 15. Rxc3 {[%clk
0:02:43.2]} 15... Nd7 {[%clk 0:02:11.6]} 16. Be2 {[%clk 0:02:39]} 16... Nf6
{[%clk 0:02:08.6]} 17. O-O {[%clk 0:02:37.7]} 17... Be6 {[%clk 0:02:06.2]} 18.
Bc4 {[%clk 0:02:24.1]} 18... Bxc4 {[%clk 0:01:57]} 19. Rxc4 {[%clk 0:02:25]}
19... Rd3 {[%clk 0:01:55.3]} 20. a4 {[%clk 0:02:25.3]} 20... a5 {[%clk
0:01:48.1]} 21. Rb1 {[%clk 0:02:19.9]} 21... Rad8 {[%clk 0:01:07.4]} 22. Kf1
{[%clk 0:01:59]} 22... Rd1+ {[%clk 0:00:56.4]} 23. Rxd1 {[%clk 0:01:57.9]} 23...
Rxd1+ {[%clk 0:00:57.3]} 24. Ke2 {[%clk 0:01:58.5]} 24... Rb1 {[%clk 0:00:45.4]}
25. bxa5 {[%clk 0:01:53.3]} 25... Rb2+ {[%clk 0:00:43.9]} 26. Kf3 {[%clk
0:01:51.3]} 26... Nd7 {[%clk 0:00:28.8]} 27. Rd4 {[%clk 0:01:42.1]} 27... Ne5+
{[%clk 0:00:27.9]} 28. Ke4 {[%clk 0:01:40.1]} 28... f6 {[%clk 0:00:25.1]} 29. f4
{[%clk 0:01:34.9]} 29... Ng4 {[%clk 0:00:22.4]} 30. h3 {[%clk 0:01:26.2]} 30...
Nf2+ {[%clk 0:00:17.8]} 31. Kf3 {[%clk 0:01:24.4]} 31... Kf7 {[%clk 0:00:14.6]}
32. Rd7+ {[%clk 0:01:23.2]} 32... Kg6 {[%clk 0:00:13.7]} 33. f5+ {[%clk
0:01:14.5]} 33... Kh6 {[%clk 0:00:13.4]} 34. Ne2 {[%clk 0:01:07.5]} 34... Nh1
{[%clk 0:00:11.7]} 35. g4 {[%clk 0:01:04.1]} 35... g6 {[%clk 0:00:11.3]} 36. Rf7
{[%clk 0:00:56.4]} 36... Rb1 {[%clk 0:00:08.1]} 37. Rxf6 {[%clk 0:00:51.3]}
37... Kg5 {[%clk 0:00:07]} 38. Rf7 {[%clk 0:00:47.5]} 38... Rf1+ {[%clk
0:00:07]} 39. Ke4 {[%clk 0:00:48]} 39... Nf2+ {[%clk 0:00:05]} 40. Kd4 {[%clk
0:00:45.4]} 40... Nxh3 {[%clk 0:00:05]} 41. Rxh7 {[%clk 0:00:38.3]} 41... gxf5
{[%clk 0:00:05.2]} 42. Rxh3 {[%clk 0:00:34.4]} 42... fxg4 {[%clk 0:00:04.1]} 43.
Rh7 {[%clk 0:00:34.4]} 1-0

[Event "Late-Titled-Tuesday-Blitz-March-19-2024"]
[Site "Chess.com"]
[Date "2024.03.19"]
[Round "3"]
[White "Jahonas"]
[Black "Missigirl"]
[Result "0-1"]
[WhiteElo "2345"]
[BlackElo "1868"]
[TimeControl "180+1"]
[EndTime "14:28:13 PDT"]
[Termination "Missigirl won by resignation"]

1. d4 {[%clk 0:03:00.9]} 1... Nf6 {[%clk 0:02:58.2]} 2. c4 {[%clk 0:03:01.1]}
2... g6 {[%clk 0:02:57.9]} 3. Nf3 {[%clk 0:03:00.7]} 3... Bg7 {[%clk 0:02:57.3]}
4. g3 {[%clk 0:03:01.1]} 4... O-O {[%clk 0:02:56.1]} 5. Bg2 {[%clk 0:03:01.4]}
5... c6 {[%clk 0:02:55.9]} 6. O-O {[%clk 0:03:01.5]} 6... d5 {[%clk 0:02:55.5]}
7. b3 {[%clk 0:02:57.2]} 7... b6 {[%clk 0:02:52.5]} 8. Bb2 {[%clk 0:02:56.6]}
8... Bb7 {[%clk 0:02:52.5]} 9. Nbd2 {[%clk 0:02:56.5]} 9... Nbd7 {[%clk
0:02:52.3]} 10. cxd5 {[%clk 0:02:54.2]} 10... cxd5 {[%clk 0:02:50.6]} 11. Rc1
{[%clk 0:02:53.4]} 11... Rc8 {[%clk 0:02:49.7]} 12. Rxc8 {[%clk 0:02:50.1]}
12... Qxc8 {[%clk 0:02:49.2]} 13. Qb1 {[%clk 0:02:49]} 13... Qa8 {[%clk
0:02:42.6]} 14. Rc1 {[%clk 0:02:48.1]} 14... Rc8 {[%clk 0:02:41.5]} 15. e3
{[%clk 0:02:47.5]} 15... e6 {[%clk 0:02:35.9]} 16. h3 {[%clk 0:02:40.8]} 16...
Rxc1+ {[%clk 0:02:33.8]} 17. Bxc1 {[%clk 0:02:37.3]} 17... Qc8 {[%clk
0:02:31.8]} 18. Bb2 {[%clk 0:02:34.4]} 18... h5 {[%clk 0:02:06.8]} 19. Bf1
{[%clk 0:02:27.4]} 19... Bf8 {[%clk 0:01:59.9]} 20. Bd3 {[%clk 0:02:26.5]} 20...
Kg7 {[%clk 0:01:53.8]} 21. Ng5 {[%clk 0:02:21.9]} 21... Bd6 {[%clk 0:01:46.7]}
22. Ndf3 {[%clk 0:02:15.9]} 22... Nf8 {[%clk 0:01:41.9]} 23. h4 {[%clk
0:02:07.3]} 23... Ng4 {[%clk 0:01:36.4]} 24. Ne5 {[%clk 0:01:44.7]} 24... Bxe5
{[%clk 0:01:36]} 25. dxe5 {[%clk 0:01:44.1]} 25... Qc7 {[%clk 0:01:35.1]} 26.
Bd4 {[%clk 0:01:36.1]} 26... Nxe5 {[%clk 0:01:23.8]} 27. f4 {[%clk 0:01:33.1]}
27... f6 {[%clk 0:01:20.5]} 28. Bxe5 {[%clk 0:01:13.5]} 28... fxe5 {[%clk
0:01:20]} 29. Bxg6 {[%clk 0:01:13.6]} 29... Qc5 {[%clk 0:01:10]} 30. Kf2 {[%clk
0:01:04]} 30... exf4 {[%clk 0:01:07.3]} 31. gxf4 {[%clk 0:01:03.4]} 31... d4
{[%clk 0:01:06.5]} 32. Be4 {[%clk 0:00:58.4]} 32... dxe3+ {[%clk 0:01:04.7]} 33.
Kf3 {[%clk 0:00:58.3]} 33... Bxe4+ {[%clk 0:00:51.7]} 34. Nxe4 {[%clk
0:00:58.2]} 34... Qf5 {[%clk 0:00:44.2]} 35. Qg1+ {[%clk 0:00:48.4]} 35... Ng6
{[%clk 0:00:43.1]} 36. Qg5 {[%clk 0:00:45.3]} 36... Qxg5 {[%clk 0:00:29.7]} 37.
hxg5 {[%clk 0:00:44.9]} 37... e2 {[%clk 0:00:29.2]} 38. Kxe2 {[%clk 0:00:40.1]}
38... Nxf4+ {[%clk 0:00:29.7]} 39. Kf3 {[%clk 0:00:40.3]} 39... e5 {[%clk
0:00:28.9]} 40. Nf6 {[%clk 0:00:34.5]} 40... Kg6 {[%clk 0:00:28.2]} 41. Nd7
{[%clk 0:00:34.9]} 41... Nd3 {[%clk 0:00:23.7]} 42. Ke3 {[%clk 0:00:29.8]} 42...
Nc1 {[%clk 0:00:20.6]} 43. Nxe5+ {[%clk 0:00:28.7]} 43... Kxg5 {[%clk
0:00:20.8]} 44. Nf3+ {[%clk 0:00:29]} 44... Kg4 {[%clk 0:00:20.4]} 45. Ne5+
{[%clk 0:00:28.8]} 45... Kg3 {[%clk 0:00:20.3]} 46. Kd2 {[%clk 0:00:26]} 46...
Nxa2 {[%clk 0:00:19.2]} 0-1

[Event "Late-Titled-Tuesday-Blitz-March-19-2024"]
[Site "Chess.com"]
[Date "2024.03.19"]
[Round "3"]
[White "EternalNight8"]
[Black "AsterPhoenix"]
[Result "0-1"]
[WhiteElo "2477"]
[BlackElo "2657"]
[TimeControl "180+1"]
[EndTime "14:28:15 PDT"]
[Termination "AsterPhoenix won by resignation"]

1. d4 {[%clk 0:03:00.9]} 1... Nf6 {[%clk 0:02:59.6]} 2. Bg5 {[%clk 0:03:00.6]}
2... Ne4 {[%clk 0:02:58.4]} 3. Bf4 {[%clk 0:03:00.6]} 3... c5 {[%clk 0:02:58.3]}
4. f3 {[%clk 0:03:00.9]} 4... Nf6 {[%clk 0:02:58.5]} 5. dxc5 {[%clk 0:03:01.2]}
5... b6 {[%clk 0:02:57.3]} 6. e4 {[%clk 0:02:58.4]} 6... bxc5 {[%clk 0:02:55.9]}
7. Nc3 {[%clk 0:02:58.7]} 7... Nc6 {[%clk 0:02:51.6]} 8. Bc4 {[%clk 0:02:56.7]}
8... g6 {[%clk 0:02:45.9]} 9. Qd2 {[%clk 0:02:52.7]} 9... Bg7 {[%clk 0:02:43.3]}
10. h4 {[%clk 0:02:45.3]} 10... Qb6 {[%clk 0:02:14.7]} 11. Nge2 {[%clk
0:02:21.9]} 11... d6 {[%clk 0:02:06.1]} 12. Rb1 {[%clk 0:01:57]} 12... h5 {[%clk
0:01:54.3]} 13. O-O {[%clk 0:01:32.5]} 13... O-O {[%clk 0:01:50.1]} 14. Kh1
{[%clk 0:01:21.9]} 14... Bb7 {[%clk 0:01:34]} 15. a4 {[%clk 0:01:02.8]} 15...
Na5 {[%clk 0:01:33.5]} 16. Ba2 {[%clk 0:00:54.5]} 16... Rac8 {[%clk 0:01:29.5]}
17. Bh6 {[%clk 0:00:52.4]} 17... Nc6 {[%clk 0:01:18.5]} 18. Qg5 {[%clk
0:00:35.1]} 18... e6 {[%clk 0:01:00.2]} 19. Bxg7 {[%clk 0:00:29.2]} 19... Kxg7
{[%clk 0:01:00.2]} 20. Nf4 {[%clk 0:00:29.3]} 20... Nd4 {[%clk 0:00:52.4]} 21.
e5 {[%clk 0:00:20.6]} 21... Nh7 {[%clk 0:00:50.9]} 22. Nxh5+ {[%clk 0:00:20.2]}
22... Kh8 {[%clk 0:00:48.9]} 23. Qg4 {[%clk 0:00:15.6]} 23... gxh5 {[%clk
0:00:47.4]} 24. Qxh5 {[%clk 0:00:16.5]} 24... d5 {[%clk 0:00:42.8]} 25. Nd1
{[%clk 0:00:14.2]} 25... Nxc2 {[%clk 0:00:40.5]} 26. Nf2 {[%clk 0:00:13.8]}
26... Rg8 {[%clk 0:00:28.9]} 27. Ng4 {[%clk 0:00:13.5]} 27... Rg7 {[%clk
0:00:24.8]} 28. Rbc1 {[%clk 0:00:12.1]} 28... Nd4 {[%clk 0:00:18.7]} 29. Bb1
{[%clk 0:00:12.1]} 29... Ne2 {[%clk 0:00:17.4]} 30. Kh2 {[%clk 0:00:12.2]} 30...
Qb4 {[%clk 0:00:06.8]} 31. g3 {[%clk 0:00:07.6]} 31... Nxc1 {[%clk 0:00:02.7]}
32. Nf6 {[%clk 0:00:08]} 32... Qxb2+ {[%clk 0:00:02.9]} 33. Kh1 {[%clk 0:00:06]}
33... Qxb1 {[%clk 0:00:03.4]} 0-1

[Event "Late-Titled-Tuesday-Blitz-March-19-2024"]
[Site "Chess.com"]
[Date "2024.03.19"]
[Round "3"]
[White "GMAneta"]
[Black "ilya2700"]
[Result "1-0"]
[WhiteElo "2608"]
[BlackElo "2323"]
[TimeControl "180+1"]
[EndTime "14:28:17 PDT"]
[Termination "GMAneta won on time"]

1. d4 {[%clk 0:02:59.7]} 1... Nf6 {[%clk 0:02:59.8]} 2. Nf3 {[%clk 0:02:59.7]}
2... g6 {[%clk 0:03:00.3]} 3. c4 {[%clk 0:03:00.2]} 3... Bg7 {[%clk 0:03:00.8]}
4. g3 {[%clk 0:03:01]} 4... O-O {[%clk 0:03:01.3]} 5. Bg2 {[%clk 0:03:01.9]}
5... d6 {[%clk 0:03:02.2]} 6. O-O {[%clk 0:03:02]} 6... c5 {[%clk 0:03:02.8]} 7.
Nc3 {[%clk 0:03:02.2]} 7... Nc6 {[%clk 0:03:03.2]} 8. dxc5 {[%clk 0:03:02]} 8...
dxc5 {[%clk 0:03:04.1]} 9. Be3 {[%clk 0:03:02.6]} 9... Be6 {[%clk 0:02:57.6]}
10. Bxc5 {[%clk 0:03:00.5]} 10... Bxc4 {[%clk 0:02:56.3]} 11. Qa4 {[%clk
0:03:00.4]} 11... Ba6 {[%clk 0:02:49.2]} 12. Rfd1 {[%clk 0:03:00.1]} 12... Qc7
{[%clk 0:02:48.6]} 13. Rac1 {[%clk 0:02:57.7]} 13... Rfd8 {[%clk 0:02:42.7]} 14.
Nb5 {[%clk 0:02:42.7]} 14... Bxb5 {[%clk 0:02:41.8]} 15. Qxb5 {[%clk 0:02:43.6]}
15... Rxd1+ {[%clk 0:02:20]} 16. Rxd1 {[%clk 0:02:44.5]} 16... Ne4 {[%clk
0:02:03.6]} 17. Ba3 {[%clk 0:02:36.5]} 17... a6 {[%clk 0:01:54]} 18. Qc4 {[%clk
0:02:32.7]} 18... Nd6 {[%clk 0:01:46.9]} 19. Qd5 {[%clk 0:02:19.3]} 19... Rd8
{[%clk 0:01:40.2]} 20. Ng5 {[%clk 0:02:19]} 20... h6 {[%clk 0:01:27]} 21. Bxd6
{[%clk 0:02:13.7]} 21... exd6 {[%clk 0:01:27.9]} 22. Ne4 {[%clk 0:02:05.7]}
22... Bxb2 {[%clk 0:01:28]} 23. Rb1 {[%clk 0:01:58.6]} 23... Bg7 {[%clk
0:01:25.5]} 24. h4 {[%clk 0:01:52.8]} 24... a5 {[%clk 0:01:01]} 25. h5 {[%clk
0:01:51.9]} 25... g5 {[%clk 0:00:56.7]} 26. a3 {[%clk 0:01:49.1]} 26... Qd7
{[%clk 0:00:24.7]} 27. Rb6 {[%clk 0:01:40.9]} 27... Qc7 {[%clk 0:00:23.4]} 28.
Rb5 {[%clk 0:01:40]} 28... b6 {[%clk 0:00:20.5]} 29. Rb1 {[%clk 0:01:31.6]}
29... Ne7 {[%clk 0:00:19.7]} 30. Qb3 {[%clk 0:01:30.4]} 30... d5 {[%clk
0:00:18.6]} 31. Nd2 {[%clk 0:01:30.4]} 31... Rb8 {[%clk 0:00:15.5]} 32. Nf1
{[%clk 0:01:24.1]} 32... b5 {[%clk 0:00:15.1]} 33. Bxd5 {[%clk 0:01:23.4]} 33...
Nxd5 {[%clk 0:00:07.9]} 34. Qxd5 {[%clk 0:01:24.3]} 34... b4 {[%clk 0:00:04.5]}
35. axb4 {[%clk 0:01:24.3]} 35... axb4 {[%clk 0:00:05.4]} 36. Ne3 {[%clk
0:01:24.3]} 36... Qe5 {[%clk 0:00:02.2]} 37. Qc4 {[%clk 0:01:21.4]} 37... Qc3
{[%clk 0:00:01.8]} 38. Qe4 {[%clk 0:01:16.4]} 38... b3 {[%clk 0:00:02]} 39. Nf5
{[%clk 0:01:16.4]} 39... b2 {[%clk 0:00:02.1]} 40. Kg2 {[%clk 0:01:15.2]} 40...
Rc8 {[%clk 0:00:01.5]} 41. Ne7+ {[%clk 0:01:13.5]} 41... Kf8 {[%clk 0:00:01.1]}
42. Nxc8 {[%clk 0:01:14.4]} 42... Qxc8 {[%clk 0:00:02]} 43. g4 {[%clk
0:01:12.5]} 43... Kg8 {[%clk 0:00:02.6]} 44. f3 {[%clk 0:01:12.6]} 44... Qd8
{[%clk 0:00:03.1]} 45. Qd3 {[%clk 0:01:12.1]} 45... Qc8 {[%clk 0:00:03.5]} 46.
Qd2 {[%clk 0:01:08.6]} 46... Qc5 {[%clk 0:00:03.8]} 47. Qd8+ {[%clk 0:01:02.3]}
47... Kh7 {[%clk 0:00:03.7]} 48. Qd2 {[%clk 0:01:03.2]} 48... Bd4 {[%clk
0:00:03.3]} 49. Rxb2 {[%clk 0:01:02.9]} 49... Bxb2 {[%clk 0:00:03.3]} 50. Qxb2
{[%clk 0:01:03.8]} 50... Qe3 {[%clk 0:00:03]} 51. Kf1 {[%clk 0:01:03.3]} 51...
Kg8 {[%clk 0:00:02]} 52. Qf6 {[%clk 0:01:03]} 1-0